bitfinex-derivatives/quotes_ETHF0:USTF0_20250112
["timestamp","ask_amount","ask_price","bid_price","bid_amount"]
[1736673559581,3.2078,3241.9,3241.8,0.21603]
[1736673560183,0.4518,3242.1,3241.6,2.1719082]
[1736673560482,23.22768107,3242.2,3242.1,0.21601]
[1736673560683,22.77708107,3242.2,3242.1,0.21601]
[1736673561289,3.2078,3242.3,3242.2,0.216]
[1736673561784,0.21598,3242.5,3242.3,0.21599]
[1736673562381,0.21598,3242.5,3242.0,0.9046]
[1736673562382,0.21598,3242.6,3242.4,0.21599]
[1736673563682,3.2078,3242.7,3242.0,0.9046]
[1736673563883,3.42377,3242.7,3242.2,2.1719082]
[1736673564080,3.42377,3242.7,3242.5,0.21598]
[1736673564284,3.2078,3242.7,3242.5,0.21598]
[1736673564477,0.21597,3242.6,3242.5,0.21598]
[1736673565886,0.15502331,3242.6,3242.5,0.21598]
[1736673566387,3.42377,3242.7,3242.5,0.21598]
[1736673567082,3.2078,3242.7,3242.2,2.1719082]
[1736673567286,3.2078,3242.7,3242.3,0.21599]
[1736673567287,3.42377,3242.7,3242.3,0.21599]
[1736673567489,3.42377,3242.7,3242.5,0.21598]
[1736673568386,3.2078,3242.7,3242.2,2.1719082]
[1736673568686,3.42377,3242.7,3242.6,0.21597]
[1736673568893,3.42377,3242.7,3242.5,0.21598]
[1736673569489,3.2078,3242.7,3242.5,0.21598]
[1736673569690,0.21597,3242.6,3242.5,0.21598]
[1736673572897,3.2078,3242.7,3242.2,2.1719082]
[1736673573194,0.21598,3242.6,3242.5,0.21598]
[1736673573787,3.2078,3242.7,3242.6,0.21597]
[1736673573995,0.21598,3242.6,3242.5,0.21597]
[1736673576004,3.2078,3242.7,3242.2,2.1719082]
[1736673576193,0.21598,3242.5,3242.4,0.21598]
[1736673576901,3.42378,3242.6,3242.5,0.21598]
[1736673577094,0.21598,3242.5,3242.4,0.21598]
[1736673578800,3.2078,3242.6,3242.3,0.4422]
[1736673579002,0.21599,3242.5,3242.4,0.21599]
[1736673579897,3.2078,3242.6,3242.3,0.4422]
[1736673580095,0.21599,3242.5,3242.4,0.21598]
[1736673582001,3.2078,3242.6,3242.3,0.4422]
[1736673582205,0.21599,3242.5,3242.4,0.21599]
[1736673583397,0.21599,3242.5,3242.4,0.68089]
[1736673583798,3.42378,3242.6,3242.5,0.21598]
[1736673584000,0.21598,3242.5,3242.4,0.68088]
[1736673585303,3.42378,3242.6,3242.5,0.21598]
[1736673585700,0.21598,3242.5,3242.4,0.68088]
[1736673586901,0.21598,3242.5,3242.4,0.68089]
[1736673595714,13.01040988,3242.6,3242.5,0.21598]
[1736673595905,13.01040988,3242.6,3242.5,1.2443079]
[1736673596308,3.42378,3242.6,3242.5,1.2443079]
[1736673597619,3.42378,3242.6,3242.5,1.0283279]
[1736673597913,0.21598,3242.5,3242.4,0.68088]
[1736673602925,0.21598,3242.5,3242.4,0.4649]
[1736673603223,0.66658,3242.5,3242.4,0.4649]
[1736673603624,0.66658,3242.5,3242.4,0.68089]
[1736673607022,0.21598,3242.5,3242.4,0.68089]
[1736673607529,16.6453449,3242.6,3242.4,0.4649]
[1736673607723,1.21271517,3242.5,3242.4,0.68089]
[1736673608017,0.78506368,3242.5,3242.4,0.68089]
[1736673608322,0.21598,3242.5,3242.4,0.68089]
[1736673608717,16.29250205,3242.6,3242.5,0.21598]
[1736673609621,16.29250205,3242.6,3242.5,1.2443079]
[1736673610124,16.29249205,3242.6,3242.5,1.2443079]
[1736673610825,15.86484056,3242.6,3242.5,1.2443079]
[1736673611024,15.41566962,3242.6,3242.5,1.2443079]
[1736673611220,15.19969962,3242.6,3242.5,1.2443079]
[1736673611424,15.19969962,3242.6,3242.5,1.7254079]
[1736673611923,12.20786962,3242.6,3242.5,1.7254079]
[1736673613124,11.99189962,3242.6,3242.5,1.7254079]
[1736673613822,12.5609833,3242.6,3242.5,1.7254079]
[1736673614026,12.7769533,3242.6,3242.5,1.7254079]
[1736673614227,12.5609833,3242.6,3242.5,1.7254079]
[1736673614917,12.7769533,3242.6,3242.5,1.7254079]
[1736673616121,12.5609833,3242.6,3242.5,1.7254079]
[1736673616315,12.7769533,3242.6,3242.5,1.7254079]
[1736673616724,12.5609833,3242.6,3242.5,1.7254079]
[1736673617828,12.7769533,3242.6,3242.5,1.7254079]
[1736673618327,12.5609833,3242.6,3242.5,1.7254079]
[1736673618523,12.7769533,3242.6,3242.5,1.7254079]
[1736673619429,12.5609833,3242.6,3242.5,1.7254079]
[1736673619617,12.7769533,3242.6,3242.5,1.7254079]
[1736673619822,12.7769533,3242.6,3242.5,1.2443079]
[1736673621930,1.21274239,3242.6,3242.5,1.2443079]
[1736673622130,0.66542577,3242.6,3242.5,1.2443079]
[1736673622432,0.21597,3242.6,3242.5,1.2443079]
[1736673623129,14.42804343,3242.7,3242.5,1.0283279]
[1736673623431,14.64401343,3242.7,3242.6,0.21597]
[1736673624533,13.19778527,3242.7,3242.6,0.21597]
[1736673625629,13.04254537,3242.7,3242.6,0.21597]
[1736673627130,9.83474537,3242.7,3242.6,0.21597]
[1736673627332,13.04254537,3242.7,3242.6,0.21597]
[1736673627533,13.19820204,3242.7,3242.6,0.21597]
[1736673629235,3.57942667,3242.7,3242.6,0.21597]
[1736673632030,3.57942667,3242.7,3242.6,0.69577]
[1736673632938,3.42377,3242.7,3242.6,0.69577]
[1736673635238,3.42377,3242.7,3242.6,0.4798]
[1736673635440,3.42377,3242.7,3242.6,0.69577]
[1736673637641,3.42377,3242.7,3242.6,0.4798]
[1736673638142,3.42377,3242.7,3242.6,0.69577]
[1736673639031,3.42377,3242.7,3242.6,0.4798]
[1736673640144,3.42377,3242.7,3242.6,0.69577]
[1736673643942,3.42377,3242.7,3242.6,0.4798]
[1736673644546,3.42377,3242.7,3242.6,0.69577]
[1736673648737,0.21597,3242.7,3242.6,0.69577]
[1736673651845,9.83537598,3242.7,3242.6,0.69577]
[1736673658446,9.61940598,3242.7,3242.6,0.69577]
[1736673658752,9.83537598,3242.7,3242.6,0.69577]
[1736673664755,9.61940598,3242.7,3242.6,0.69577]
[1736673664954,9.83537598,3242.7,3242.6,0.69577]
[1736673668655,0.21597,3242.7,3242.6,0.69577]
[1736673668849,4.29210852,3242.8,3242.6,0.4798]
[1736673669049,4.50806852,3242.8,3242.7,0.21597]
[1736673669249,4.05861275,3242.8,3242.7,0.21597]
[1736673670354,3.90196,3242.8,3242.7,0.21597]
[1736673671558,4.05699397,3242.8,3242.7,0.21597]
[1736673673662,0.84919397,3242.8,3242.7,0.21597]
[1736673674051,4.05699397,3242.8,3242.7,0.21597]
[1736673675156,0.84919397,3242.8,3242.7,0.21597]
[1736673675355,4.05699397,3242.8,3242.7,0.21597]
[1736673685366,3.90196,3242.8,3242.7,0.21597]
[1736673690160,4.0600328,3242.8,3242.7,0.21597]
[1736673692163,0.21597,3242.7,3242.6,0.4798]
[1736673692358,0.68217,3242.7,3242.6,0.4798]
[1736673692557,0.21597,3242.6,3242.5,0.21597]
[1736673692767,0.68777,3242.6,3242.5,0.21597]
[1736673692966,0.68777,3242.6,3241.9,0.21601]
[1736673692967,0.21602,3242.0,3241.9,0.21601]
[1736673693158,0.21602,3241.9,3241.8,0.4798]
[1736673693364,2.6421479,3241.9,3241.8,0.4798]
[1736673694763,12.24801711,3241.9,3241.8,0.4798]
[1736673695070,0.21604,3241.6,3241.4,0.21605]
[1736673695272,0.21605,3241.5,3241.4,0.21605]
[1736673695764,0.21604,3241.6,3241.4,0.21605]
[1736673696076,0.21605,3241.5,3241.4,0.21605]
[1736673696773,1.0283279,3241.7,3241.4,0.21605]
[1736673697370,0.21604,3241.6,3241.4,0.21605]
[1736673697573,0.21605,3241.5,3241.4,0.21605]
[1736673698170,0.21604,3241.6,3241.4,1.0283279]
[1736673698476,0.21604,3241.6,3241.5,0.21605]
[1736673702076,3.42383,3241.7,3241.6,0.21604]
[1736673702771,3.42383,3241.7,3241.6,0.65474]
[1736673704773,3.2078,3241.7,3241.6,0.65474]
[1736673705379,3.42383,3241.7,3241.6,0.65474]
[1736673705572,3.2078,3241.7,3241.6,0.65474]
[1736673706272,3.42383,3241.7,3241.6,0.65474]
[1736673706471,4.4521579,3241.7,3241.6,0.4387]
[1736673707576,3.42383,3241.7,3241.6,0.65474]
[1736673707774,3.2078,3241.7,3241.6,1.6830679]
[1736673709077,3.2078,3241.7,3241.6,0.65474]
[1736673710177,3.42383,3241.7,3241.6,0.65474]
[1736673710974,3.2078,3241.7,3241.6,0.65474]
[1736673711378,4.4521579,3241.7,3241.6,0.65474]
[1736673711781,4.4521579,3241.7,3241.6,0.4387]
[1736673712780,4.2361279,3241.7,3241.1,2.96]
[1736673712973,4.2361279,3241.2,3240.4,1.0283279]
[1736673713181,0.21611,3240.5,3240.4,0.67802]
[1736673713676,0.21612,3240.4,3240.2,0.21613]
[1736673714279,0.21612,3240.4,3240.3,0.21613]
[1736673714486,4.2361279,3240.6,3240.3,0.21613]
[1736673714784,0.21612,3240.5,3240.3,0.21613]
[1736673714978,0.21612,3240.5,3240.3,0.21612]
[1736673717482,0.21612,3240.5,3240.3,0.21613]
[1736673718886,2.914,3240.5,3239.7,1.0283279]
[1736673719087,3.2078,3240.2,3239.9,1.0283279]
[1736673719392,0.21614,3240.1,3239.9,1.0283279]
[1736673719691,0.21614,3240.1,3239.9,1.2444779]
[1736673720697,3.2078,3240.2,3239.9,1.0283279]
[1736673720997,3.2078,3240.2,3240.1,0.21614]
[1736673721495,3.2078,3240.2,3240.1,1.2444679]
[1736673721696,0.21612,3240.4,3240.2,0.21613]
[1736673721887,0.21613,3240.3,3240.2,0.9144]
[1736673722287,1.2444579,3240.3,3240.2,0.4607]
[1736673724699,0.21617,3239.6,3239.5,0.4409]
[1736673725001,0.21617,3239.6,3239.5,0.8905]
[1736673726691,3.2078,3239.7,3239.5,0.8905]
[1736673726898,3.42397,3239.7,3239.5,1.10668]
[1736673728401,0.21617,3239.6,3239.5,1.10668]
[1736673728598,3.42397,3239.7,3239.5,1.10668]
[1736673729000,3.2078,3239.7,3239.6,0.21617]
[1736673729196,3.42397,3239.7,3239.6,0.21617]
[1736673731801,3.2078,3239.7,3239.6,0.21617]
[1736673733110,3.2078,3239.7,3239.5,0.8905]
[1736673733404,3.42397,3239.7,3239.5,1.10667]
[1736673733703,3.2078,3239.7,3239.6,0.21617]
[1736673734109,3.6493,3239.7,3239.6,0.21617]
[1736673735805,3.86547,3239.7,3239.6,0.21617]
[1736673737309,3.6493,3239.7,3239.6,0.21617]
[1736673740814,0.4415,3239.7,3239.6,0.21617]
[1736673741004,3.2078,3239.8,3239.6,1.0283279]
[1736673741205,3.2078,3239.8,3239.7,0.21617]
[1736673741404,3.2078,3239.8,3239.7,0.66707]
[1736673745110,3.2078,3239.9,3239.8,0.21615]
[1736673746016,3.42395,3239.9,3239.8,0.21615]
[1736673746715,3.2078,3239.9,3239.8,0.21615]
[1736673748611,3.42395,3239.9,3239.8,0.21615]
[1736673749723,3.2078,3239.9,3239.8,0.21615]
[1736673749914,3.42395,3239.9,3239.8,0.21615]
[1736673750613,3.2078,3239.9,3239.6,1.0283279]
[1736673750815,0.21616,3239.8,3239.7,0.21616]
[1736673751823,3.42395,3239.9,3239.8,0.21616]
[1736673752615,0.21616,3239.8,3239.7,0.21616]
[1736673753112,3.42396,3239.9,3239.8,0.21616]
[1736673754725,3.2078,3239.9,3239.8,1.2444879]
[1736673761830,0.21615,3240.0,3239.9,0.21615]
[1736673762028,0.21614,3240.1,3240.0,0.21614]
[1736673762225,0.21614,3240.1,3240.0,1.6802679]
[1736673767836,3.42393,3240.2,3240.1,0.21614]
[1736673768231,0.21614,3240.1,3240.0,1.6802679]
[1736673768426,3.2078,3240.2,3240.0,1.6802679]
[1736673768631,3.42394,3240.2,3240.1,0.21614]
[1736673769229,3.2078,3240.2,3240.1,0.21614]
[1736673770538,3.42393,3240.2,3240.1,0.21614]
[1736673772132,3.2078,3240.2,3240.0,1.4641279]
[1736673772335,0.21614,3240.1,3240.0,1.6802679]
[1736673772543,3.2078,3240.2,3240.0,1.4641279]
[1736673772731,3.2078,3240.2,3240.1,0.21614]
[1736673772933,3.42393,3240.2,3240.1,0.21614]
[1736673773935,0.21613,3240.2,3240.1,0.21614]
[1736673774142,0.4368,3240.4,3240.0,1.4641279]
[1736673774334,0.21613,3240.3,3240.2,1.2444579]
[1736673775536,0.4368,3240.4,3240.2,1.0283279]
[1736673775737,0.21613,3240.3,3240.2,1.2444579]
[1736673776534,0.65292,3240.4,3240.3,0.21613]
[1736673776729,0.4368,3240.4,3240.3,0.21613]
[1736673777630,0.4368,3240.4,3240.3,41.01613]
[1736673778032,0.65292,3240.4,3240.3,41.01613]
[1736673779243,3.2078,3240.6,3240.3,40.8]
[1736673779540,3.88501,3240.6,3240.3,40.8]
[1736673779743,3.88501,3240.6,3240.4,0.21612]
[1736673779930,0.21611,3240.5,3240.4,0.21612]
[1736673780541,3.88501,3240.6,3240.2,1.0283279]
[1736673780737,3.88501,3240.6,3240.3,0.21613]
[1736673780942,3.88501,3240.6,3240.4,1.2444479]
[1736673781336,3.6689,3240.6,3240.2,41.8283279]
[1736673781540,0.21612,3240.4,3240.2,42.0444579]
[1736673781737,4.6972279,3240.6,3240.0,0.4358]
[1736673782044,1.0283279,3240.1,3239.3,8.42650336]
[1736673782245,3.2078,3239.8,3239.3,5.84879694]
[1736673782544,0.21618,3239.5,3239.3,6.06498694]
[1736673782744,0.4454,3239.4,3239.3,1.2445179]
[1736673783041,0.21619,3239.3,3239.2,41.2468]
[1736673783247,0.21619,3239.3,3239.2,40.8]
[1736673785244,0.21619,3239.3,3239.2,41.0162]
[1736673785844,0.21619,3239.3,3239.2,40.8]
[1736673786536,0.66159,3239.4,3239.2,41.0162]
[1736673787546,0.4454,3239.4,3239.2,41.0162]
[1736673787747,0.21619,3239.3,3239.2,40.8]
[1736673788446,0.21619,3239.3,3239.2,41.0162]
[1736673788849,0.4454,3239.4,3239.2,41.0162]
[1736673789145,0.21619,3239.3,3239.2,41.0162]
[1736673789343,0.21619,3239.3,3239.2,40.8]
[1736673791648,0.4454,3239.4,3239.0,3.42401]
[1736673791843,0.685,3239.2,3239.0,3.42401]
[1736673792751,0.4605,3239.1,3239.0,3.42401]
[1736673793250,0.67671,3239.1,3239.0,3.2078]
[1736673793443,0.4605,3239.1,3239.0,3.42401]
[1736673795250,0.685,3239.2,3239.0,44.0078]
[1736673795447,0.685,3239.2,3239.1,1.2445379]
[1736673795644,0.4688,3239.2,3239.1,1.2445379]
[1736673797746,0.685,3239.2,3239.1,1.2445379]
[1736673799351,0.685,3239.2,3239.1,1.0283279]
[1736673799550,0.21621,3239.1,3239.0,44.22401]
[1736673799853,0.21621,3239.1,3239.0,3.42401]
[1736673800653,0.21621,3239.1,3239.0,0.21621]
[1736673801045,0.685,3239.2,3239.0,0.21621]
[1736673801247,0.21621,3239.1,3239.0,0.21621]
[1736673801551,0.685,3239.2,3239.1,0.21621]
[1736673803448,0.21622,3239.0,3238.9,1.2445479]
[1736673803761,3.2078,3239.2,3239.1,0.21621]
[1736673803952,3.424,3239.2,3239.1,1.2445379]
[1736673804254,3.2078,3239.2,3239.1,1.2445379]
[1736673804448,3.424,3239.2,3239.1,1.2445379]
[1736673804861,3.2078,3239.2,3239.1,1.2445379]
[1736673805055,3.424,3239.2,3239.1,1.2445379]
[1736673807658,3.2078,3239.2,3239.1,1.2445379]
[1736673808259,3.424,3239.2,3239.1,1.2445379]
[1736673808554,3.2078,3239.2,3239.1,1.2445379]
[1736673808749,3.2078,3239.6,3239.3,0.21619]
[1736673808949,3.2078,3239.6,3239.5,0.21618]
[1736673809353,3.2078,3239.6,3239.5,0.66208]
[1736673809554,3.42397,3239.6,3239.5,0.66208]
[1736673811058,0.21617,3239.6,3239.5,0.66208]
[1736673811258,3.42397,3239.6,3239.5,0.66208]
[1736673811860,3.2078,3239.6,3239.5,0.66208]
[1736673812751,3.42397,3239.6,3239.5,0.66208]
[1736673813152,3.2078,3239.6,3239.5,0.66208]
[1736673815455,3.42397,3239.6,3239.5,0.66208]
[1736673816163,3.4230289,3239.6,3239.5,0.66208]
[1736673816863,3.2068589,3239.6,3239.5,0.66208]
[1736673817457,3.4230289,3239.6,3239.5,0.4459]
[1736673817664,3.4230289,3239.6,3239.5,0.66208]
[1736673821479,3.4230289,3239.6,3239.5,0.4459]
[1736673821681,3.2068589,3239.6,3239.5,1.6904079]
[1736673821879,3.4230289,3239.6,3239.5,1.6904079]
[1736673822476,3.2068589,3239.6,3239.5,1.6904079]
[1736673822879,3.4230289,3239.6,3239.5,1.6904079]
[1736673823085,3.2068589,3239.6,3239.5,1.6904079]
[1736673824877,0.4391,3239.9,3239.8,0.21616]
[1736673825082,3.42394,3240.1,3239.8,1.0283279]
[1736673825286,3.42394,3240.1,3240.0,0.21615]
[1736673825782,3.2078,3240.1,3240.0,0.21615]
[1736673826181,3.42394,3240.1,3240.0,0.21615]
[1736673826684,3.2078,3240.1,3240.0,0.21615]
[1736673831290,0.67144,3240.2,3239.9,0.959]
[1736673831291,0.67144,3240.2,3240.1,0.21614]
[1736673831490,3.87924,3240.2,3240.1,0.21614]
[1736673832583,3.2078,3240.2,3240.1,0.21614]
[1736673833595,3.2078,3240.2,3240.1,41.01614]
[1736673834293,0.4428,3240.3,3240.2,0.21613]
[1736673834894,0.41904616,3240.3,3240.2,0.21613]
[1736673836394,3.6782,3240.6,3240.5,0.21611]
[1736673836692,3.6782,3240.6,3240.5,1.2444379]
[1736673838999,3.2078,3240.6,3240.5,1.2444379]
[1736673839802,3.42391,3240.6,3240.5,1.2444379]
[1736673840302,3.42391,3240.6,3240.5,0.21611]
[1736673840895,3.2078,3240.6,3240.4,0.4758]
[1736673841201,0.21612,3240.5,3240.4,0.21612]
[1736673844396,4.2361279,3240.6,3240.3,0.4629]
[1736673844600,0.66822,3240.4,3240.3,0.67902]
[1736673845803,0.66822,3240.4,3240.3,0.4629]
[1736673848699,1.12682,3240.4,3240.3,0.4629]
[1736673850003,1.12682,3240.4,3240.3,0.67903]
[1736673850204,1.12682,3240.4,3240.3,0.4629]
[1736673851007,0.21613,3240.3,3240.2,1.2444579]
[1736673853504,0.9107,3240.4,3240.3,0.21613]
[1736673853505,1.12682,3240.4,3240.3,0.21613]
[1736673853903,0.21613,3240.3,3240.1,0.21613]
[1736673854102,0.4814,3240.2,3240.1,0.21613]
[1736673854701,0.4814,3240.2,3239.9,3.4097]
[1736673854901,0.21615,3240.0,3239.9,2.96]
[1736673855101,0.21617,3239.6,3239.5,0.21618]
[1736673855301,0.21618,3239.5,3239.2,0.92739711]
[1736673855506,0.66749,3239.4,3239.3,40.8]
[1736673855707,1.14309,3239.4,3239.3,40.8]
[1736673856111,0.21619,3239.3,3239.2,1.4928279]
[1736673856807,0.21621,3239.1,3239.0,40.8]
[1736673858206,3.2078,3239.2,3239.0,40.8]
[1736673858207,3.2078,3239.2,3239.0,41.01621]
[1736673858413,3.424,3239.2,3239.1,1.0283279]
[1736673858616,3.2078,3239.2,3239.0,40.8]
[1736673858908,0.21621,3239.1,3239.0,40.8]
[1736673859814,3.424,3239.2,3239.0,41.01621]
[1736673860105,3.2078,3239.2,3239.0,40.8]
[1736673860313,3.424,3239.2,3239.0,41.01621]
[1736673860503,3.2078,3239.2,3239.0,40.8]
[1736673860708,3.2078,3239.2,3239.1,0.21621]
[1736673861005,3.2078,3239.2,3239.1,0.69501]
[1736673861715,3.2078,3239.2,3239.1,41.49501]
[1736673863616,3.424,3239.2,3239.1,0.4788]
[1736673863819,3.424,3239.2,3238.9,2.72844029]
[1736673863820,0.21621,3239.1,3238.9,2.72844029]
[1736673864114,0.4652,3239.0,3238.9,43.52844029]
[1736673864717,0.21621,3239.1,3239.0,0.21621]
[1736673864915,0.21621,3239.1,3238.9,43.52844029]
[1736673866011,3.424,3239.2,3238.9,2.51222029]
[1736673866213,0.21621,3239.1,3238.9,2.72844029]
[1736673866515,3.424,3239.2,3239.0,41.01621]
[1736673866818,3.424,3239.2,3239.0,41.48611]
[1736673867516,3.2078,3239.2,3239.1,0.21621]
[1736673868516,3.2078,3239.2,3239.1,41.01621]
[1736673872123,0.21616,3239.8,3239.7,0.21617]
[1736673872323,3.2078,3239.8,3239.7,0.21617]
[1736673878639,0.4746,3239.9,3239.3,3.93729785]
[1736673878843,0.4746,3239.9,3239.8,0.21616]
[1736673879549,0.21616,3239.8,3239.7,0.21616]
[1736673879841,0.69076,3239.9,3239.7,0.21616]
[1736673880438,0.69076,3239.9,3239.3,3.39682785]
[1736673880745,0.69076,3239.9,3239.8,0.21616]
[1736673882748,0.4746,3239.9,3239.3,3.39682785]
[1736673882943,0.21616,3239.8,3239.3,3.39682785]
[1736673883247,0.21616,3239.8,3239.6,0.21617]
[1736673883747,0.21616,3239.8,3239.3,3.39682785]
[1736673884046,0.21616,3239.8,3239.6,0.21617]
[1736673884739,0.21616,3239.8,3239.3,3.39682785]
[1736673884945,0.21616,3239.8,3239.7,0.21617]
[1736673885943,0.21616,3239.8,3239.2,0.9954]
[1736673886149,0.4746,3239.9,3238.9,5.72002029]
[1736673886347,3.2078,3239.6,3238.9,2.51222029]
[1736673886553,0.2162,3239.3,3239.1,0.2162]
[1736673886739,0.4803,3239.2,3239.1,0.2162]
[1736673887053,0.6965,3239.2,3239.1,0.2162]
[1736673887352,0.4803,3239.2,3239.1,0.2162]
[1736673888650,0.6965,3239.2,3239.1,0.2162]
[1736673888853,0.4803,3239.2,3239.1,0.2162]
[1736673891046,1.14448,3239.5,3239.3,0.21619]
[1736673891248,0.9283,3239.5,3239.4,0.65599]
[1736673891451,3.2078,3239.6,3239.4,0.4398]
[1736673891653,3.2078,3239.6,3239.5,0.21618]
[1736673892256,3.2078,3239.6,3239.2,2.17682785]
[1736673892459,0.21618,3239.5,3239.3,0.21619]
[1736673892651,3.42398,3239.6,3239.4,0.21618]
[1736673893057,3.42398,3239.6,3239.3,0.21619]
[1736673893258,3.2078,3239.6,3239.5,0.21618]
[1736673893956,3.2078,3239.6,3239.5,2.39300785]
[1736673894161,3.2078,3239.6,3239.0,0.4398]
[1736673894457,0.21618,3239.5,3239.2,0.21619]
[1736673894949,0.21619,3239.4,3239.1,0.2162]
[1736673895144,0.906,3239.3,3239.1,0.2162]
[1736673895555,1.3887,3239.3,3239.1,0.2162]
[1736673895955,1.3887,3239.3,3239.2,0.2162]
[1736673896256,0.4393,3239.3,3239.2,0.2162]
[1736673896955,3.2078,3239.6,3239.4,0.21618]
[1736673897750,0.21618,3239.5,3239.0,0.4398]
[1736673897947,0.455,3239.4,3239.1,0.2162]
[1736673898151,0.455,3239.4,3239.0,0.4398]
[1736673898152,0.476,3239.3,3239.0,0.4398]
[1736673898352,0.476,3239.3,3239.2,0.2162]
[1736673899756,0.476,3239.3,3239.1,0.2162]
[1736673900265,0.21621,3239.0,3238.9,3.2078]
[1736673900466,0.21621,3239.1,3238.9,3.2078]
[1736673900662,0.21621,3239.0,3238.9,3.2078]
[1736673901254,0.21624,3238.6,3238.3,0.21625]
[1736673901457,0.4791,3238.5,3238.0,0.4681]
[1736673901655,0.4733,3238.4,3238.3,0.21626]
[1736673901860,0.4791,3238.5,3238.4,0.21625]
[1736673902059,0.4791,3238.5,3238.4,0.65835]
[1736673903451,0.4791,3238.5,3238.4,0.4421]
[1736673904263,0.69535,3238.5,3238.2,43.19308785]
[1736673904463,0.9281,3238.5,3238.2,42.97682785]
[1736673904667,0.9281,3238.5,3238.3,0.21626]
[1736673904963,0.9281,3238.5,3238.4,0.21625]
[1736673905861,0.9281,3238.5,3238.3,0.21626]
[1736673906070,0.9281,3238.5,3238.4,0.21625]
[1736673906363,0.9281,3238.5,3238.2,42.97682785]
[1736673906566,0.4791,3238.5,3238.2,42.97682785]
[1736673906765,3.2078,3238.6,3238.2,40.8]
[1736673906961,3.2078,3238.6,3238.3,0.21625]
[1736673907568,3.2078,3238.6,3238.4,0.21625]
[1736673907866,3.42404,3238.6,3238.3,0.21626]
[1736673909366,3.2078,3238.6,3238.2,40.8]
[1736673909561,3.2078,3238.6,3238.4,0.21625]
[1736673909762,3.42404,3238.6,3238.4,0.21625]
[1736673909962,3.2078,3238.6,3238.4,0.21625]
[1736673910569,3.2078,3238.6,3238.5,0.21625]
[1736673911462,3.2078,3238.6,3238.4,0.21625]
[1736673913171,3.42404,3238.6,3238.4,0.21625]
[1736673913570,3.2078,3238.6,3238.4,0.21625]
[1736673914173,3.42404,3238.6,3238.4,0.21625]
[1736673914368,3.42404,3238.6,3238.1,43.41892785]
[1736673914674,3.2078,3238.6,3238.4,0.21625]
[1736673915469,3.42404,3238.6,3238.4,0.21625]
[1736673916070,3.2078,3238.6,3238.1,43.41892785]
[1736673916370,3.42404,3238.6,3238.1,0.4421]
[1736673916673,3.42404,3238.6,3238.4,0.21625]
[1736673916977,3.2078,3238.6,3238.5,0.21625]
[1736673917271,3.2078,3238.6,3238.3,1.03082563]
[1736673917474,3.42404,3238.6,3238.4,0.21625]
[1736673918775,0.21625,3238.5,3238.3,1.24708563]
[1736673919373,3.42404,3238.6,3238.4,0.21625]
[1736673922470,3.42404,3238.6,3238.5,0.21625]
[1736673922675,3.42404,3238.6,3238.3,1.03082563]
[1736673922873,3.42404,3238.6,3238.4,0.21625]
[1736673923176,0.21625,3238.5,3238.3,1.24708563]
[1736673923370,3.42404,3238.6,3238.4,0.21625]
[1736673923571,3.2078,3238.6,3238.1,42.27292563]
[1736673923771,0.21625,3238.5,3238.3,0.21626]
[1736673924076,3.42404,3238.6,3238.3,1.03082563]
[1736673924272,3.42404,3238.6,3238.4,0.67325]
[1736673924972,3.2078,3238.6,3238.5,0.21625]
[1736673925278,0.54048,3239.4,3238.5,1.03082563]
[1736673925279,3.2078,3239.0,3238.5,1.03082563]
[1736673925575,0.4502266,3239.2,3239.1,0.21621]
[1736673925769,9.60586921,3239.4,3239.1,1.03082563]
[1736673925967,9.60586921,3239.4,3239.3,1.24701563]
[1736673926474,0.21617,3239.8,3239.2,0.9504]
[1736673926671,1.24698563,3239.8,3239.5,0.21618]
[1736673926976,3.42398,3239.6,3239.3,0.21619]
[1736673927172,3.42398,3239.6,3239.3,41.01619]
[1736673927375,3.2078,3239.6,3239.1,2.96]
[1736673927676,0.21619,3239.3,3239.1,2.96]
[1736673927878,0.9109,3239.2,3239.1,2.96]
[1736673928075,1.3867,3239.2,3238.8,0.4381]
[1736673928274,1.3867,3239.2,3238.7,0.66333]
[1736673928275,0.21622,3239.0,3238.7,0.66333]
[1736673929272,0.21621,3239.1,3238.7,0.4471]
[1736673929477,0.21621,3239.1,3238.8,0.21622]
[1736673929985,1.3867,3239.2,3238.7,0.4471]
[1736673930174,1.6029,3239.2,3239.0,0.21621]
[1736673930376,1.3867,3239.2,3239.0,0.21621]
[1736673930679,0.9201,3239.2,3239.1,0.65891]
[1736673930882,0.9201,3239.2,3239.1,0.4427]
[1736673931282,0.9201,3239.2,3239.1,0.65891]
[1736673931481,0.9201,3239.2,3239.1,0.4427]
[1736673931877,1.1363,3239.2,3239.1,0.4427]
[1736673932280,0.21621,3239.1,3238.9,0.21622]
[1736673932480,0.4775,3239.1,3238.9,0.21621]
[1736673932682,0.69371,3239.1,3238.9,0.21621]
[1736673932873,0.4775,3239.1,3239.0,0.21621]
[1736673933079,0.4775,3239.1,3238.6,0.4427]
[1736673933280,0.69371,3239.1,3238.9,0.21622]
[1736673933580,0.4775,3239.1,3238.9,0.21621]
[1736673933885,0.69371,3239.1,3238.9,0.21621]
[1736673934881,0.4775,3239.1,3238.6,0.4427]
[1736673935083,0.4775,3239.1,3239.0,0.21621]
[1736673935285,0.4775,3239.1,3238.6,0.4427]
[1736673935482,0.9201,3239.2,3239.1,0.21621]
[1736673935785,0.9201,3239.2,3238.6,0.4427]
[1736673935786,0.9201,3239.2,3239.0,0.21621]
[1736673935977,1.1363,3239.2,3238.6,0.4427]
[1736673936177,1.1363,3239.2,3239.1,0.21621]
[1736673936178,0.9201,3239.2,3239.1,0.21621]
[1736673936988,0.9201,3239.2,3239.0,0.21621]
[1736673937188,3.424,3239.3,3239.1,0.456]